[Event "Late-Titled-Tuesday-Blitz-August-29-2023"]
[Site "Chess.com"]
[Date "2023.08.29"]
[Round "4"]
[White "Chessdemon2019"]
[Black "Goryachkina"]
[Result "1-0"]
[WhiteElo "2397"]
[BlackElo "2632"]
[TimeControl "180+1"]
[EndTime "14:38:20 PDT"]
[Termination "Chessdemon2019 won on time"]

1. e4 {[%clk 0:02:56.1]} 1... e6 {[%clk 0:02:59.8]} 2. d4 {[%clk 0:02:54.9]}
2... d5 {[%clk 0:03:00.1]} 3. Nc3 {[%clk 0:02:53.2]} 3... Nf6 {[%clk 0:03:00.4]}
4. e5 {[%clk 0:02:53.3]} 4... Nfd7 {[%clk 0:03:00.6]} 5. f4 {[%clk 0:02:53.9]}
5... c5 {[%clk 0:03:01]} 6. Nf3 {[%clk 0:02:54.3]} 6... Nc6 {[%clk 0:03:01.4]}
7. Be3 {[%clk 0:02:54.5]} 7... a6 {[%clk 0:03:01.7]} 8. Qd2 {[%clk 0:02:54.2]}
8... b5 {[%clk 0:03:01.8]} 9. a3 {[%clk 0:02:54]} 9... Qa5 {[%clk 0:02:59.9]}
10. dxc5 {[%clk 0:02:42.4]} 10... Bxc5 {[%clk 0:02:38.5]} 11. Be2 {[%clk
0:02:28.7]} 11... Bxe3 {[%clk 0:02:32.8]} 12. Qxe3 {[%clk 0:02:28.8]} 12... b4
{[%clk 0:02:32.7]} 13. Nd1 {[%clk 0:02:12.4]} 13... bxa3+ {[%clk 0:02:28.8]} 14.
Kf2 {[%clk 0:02:12.2]} 14... axb2 {[%clk 0:02:23.8]} 15. Nxb2 {[%clk 0:02:07.6]}
15... Qb6 {[%clk 0:02:20.5]} 16. Nd3 {[%clk 0:01:57.7]} 16... O-O {[%clk
0:02:16.5]} 17. Qxb6 {[%clk 0:01:54.4]} 17... Nxb6 {[%clk 0:02:16.5]} 18. Nc5
{[%clk 0:01:55]} 18... a5 {[%clk 0:02:13.2]} 19. Rhb1 {[%clk 0:01:53.1]} 19...
Nd7 {[%clk 0:02:09.7]} 20. Nb3 {[%clk 0:01:46.2]} 20... f6 {[%clk 0:02:08.6]}
21. Bb5 {[%clk 0:01:37.1]} 21... Ne7 {[%clk 0:01:50.3]} 22. Bxd7 {[%clk
0:01:27.2]} 22... Bxd7 {[%clk 0:01:50.4]} 23. exf6 {[%clk 0:01:27.7]} 23... Rxf6
{[%clk 0:01:46.2]} 24. Rxa5 {[%clk 0:01:24.9]} 24... Rd8 {[%clk 0:01:18.9]} 25.
g3 {[%clk 0:01:22.5]} 25... Nc6 {[%clk 0:01:12.7]} 26. Rc5 {[%clk 0:01:14]}
26... Be8 {[%clk 0:01:12.6]} 27. Kg2 {[%clk 0:01:07.5]} 27... h6 {[%clk
0:01:04]} 28. Nbd4 {[%clk 0:01:01.9]} 28... Nxd4 {[%clk 0:00:56.2]} 29. Nxd4
{[%clk 0:01:01.8]} 29... g5 {[%clk 0:00:54]} 30. fxg5 {[%clk 0:00:57.6]} 30...
hxg5 {[%clk 0:00:54.2]} 31. Re1 {[%clk 0:00:55.1]} 31... Kf7 {[%clk 0:00:39.5]}
32. Nf3 {[%clk 0:00:48.9]} 32... Kg6 {[%clk 0:00:14.4]} 33. Rc7 {[%clk
0:00:38.7]} 33... Rxf3 {[%clk 0:00:04.5]} 34. Kxf3 {[%clk 0:00:37]} 34... Bf7
{[%clk 0:00:04.8]} 35. Kg4 {[%clk 0:00:32.3]} 35... d4 {[%clk 0:00:04.1]} 36.
Re5 {[%clk 0:00:32.3]} 36... d3 {[%clk 0:00:03.2]} 37. cxd3 {[%clk 0:00:31.8]}
37... Rd4+ {[%clk 0:00:02.8]} 38. Re4 {[%clk 0:00:29.7]} 38... Rxd3 {[%clk
0:00:03]} 39. Rc5 {[%clk 0:00:26.6]} 39... Kf6 {[%clk 0:00:01.5]} 40. Rxg5
{[%clk 0:00:25.2]} 1-0

[Event "Late-Titled-Tuesday-Blitz-August-29-2023"]
[Site "Chess.com"]
[Date "2023.08.29"]
[Round "4"]
[White "komogro"]
[Black "rookoco"]
[Result "0-1"]
[WhiteElo "2468"]
[BlackElo "2692"]
[TimeControl "180+1"]
[EndTime "14:38:22 PDT"]
[Termination "rookoco won on time"]

1. e4 {[%clk 0:02:52.8]} 1... c5 {[%clk 0:02:59.7]} 2. Nc3 {[%clk 0:02:52.1]}
2... g6 {[%clk 0:02:58.1]} 3. g3 {[%clk 0:02:52.7]} 3... Bg7 {[%clk 0:02:57.6]}
4. Bg2 {[%clk 0:02:53.2]} 4... Nc6 {[%clk 0:02:51.5]} 5. d3 {[%clk 0:02:53]}
5... Rb8 {[%clk 0:02:50.4]} 6. Be3 {[%clk 0:02:52.2]} 6... d6 {[%clk 0:02:49.7]}
7. Qd2 {[%clk 0:02:47.4]} 7... b5 {[%clk 0:02:41.9]} 8. Nd1 {[%clk 0:02:31.5]}
8... b4 {[%clk 0:02:39.7]} 9. Nh3 {[%clk 0:02:30.5]} 9... h5 {[%clk 0:02:25]}
10. O-O {[%clk 0:02:25.2]} 10... h4 {[%clk 0:02:16.5]} 11. Ng5 {[%clk
0:02:23.9]} 11... Nf6 {[%clk 0:02:01.9]} 12. f3 {[%clk 0:02:15.3]} 12... hxg3
{[%clk 0:01:58.9]} 13. hxg3 {[%clk 0:02:14.9]} 13... Ne5 {[%clk 0:01:20.3]} 14.
Nf2 {[%clk 0:02:04.1]} 14... Bd7 {[%clk 0:01:15.5]} 15. c4 {[%clk 0:01:49.9]}
15... Nh5 {[%clk 0:01:10.8]} 16. f4 {[%clk 0:01:37.1]} 16... Nc6 {[%clk
0:00:58.8]} 17. Nh1 {[%clk 0:01:16.7]} 17... Nf6 {[%clk 0:00:57.5]} 18. Nf2
{[%clk 0:01:10.8]} 18... Nh5 {[%clk 0:00:56]} 19. Nh1 {[%clk 0:01:09.9]} 19...
Qc8 {[%clk 0:00:47.4]} 20. f5 {[%clk 0:01:04]} 20... gxf5 {[%clk 0:00:32.1]} 21.
g4 {[%clk 0:00:47.9]} 21... Nf6 {[%clk 0:00:29.3]} 22. gxf5 {[%clk 0:00:43]}
22... Ng4 {[%clk 0:00:28.5]} 23. Bf4 {[%clk 0:00:38.6]} 23... Bd4+ {[%clk
0:00:27.4]} 24. Nf2 {[%clk 0:00:33.6]} 24... Nce5 {[%clk 0:00:26.4]} 25. Nf3
{[%clk 0:00:15.7]} 25... Rg8 {[%clk 0:00:19.7]} 26. Nxd4 {[%clk 0:00:14.6]}
26... cxd4 {[%clk 0:00:19.4]} 27. Nxg4 {[%clk 0:00:12.7]} 27... Nxg4 {[%clk
0:00:19.3]} 28. Kh1 {[%clk 0:00:11.7]} 28... Qc5 {[%clk 0:00:18.5]} 29. Bf3
{[%clk 0:00:11.2]} 29... Ne3 {[%clk 0:00:15.8]} 30. Rfe1 {[%clk 0:00:11.1]}
30... e5 {[%clk 0:00:12.9]} 31. Bxe3 {[%clk 0:00:11.2]} 31... dxe3 {[%clk
0:00:13]} 32. Qxe3 {[%clk 0:00:12.1]} 32... Ke7 {[%clk 0:00:12.4]} 33. b3 {[%clk
0:00:07.8]} 33... Rg3 {[%clk 0:00:11.4]} 34. Qxc5 {[%clk 0:00:06.2]} 34... Rh8+
{[%clk 0:00:10.9]} 0-1

[Event "Late-Titled-Tuesday-Blitz-August-29-2023"]
[Site "Chess.com"]
[Date "2023.08.29"]
[Round "4"]
[White "guillembaches"]
[Black "lupta_robin"]
[Result "0-1"]
[WhiteElo "2448"]
[BlackElo "2637"]
[TimeControl "180+1"]
[EndTime "14:38:23 PDT"]
[Termination "lupta_robin won on time"]

1. e4 {[%clk 0:03:00.9]} 1... Nc6 {[%clk 0:02:57]} 2. Nf3 {[%clk 0:03:00.8]}
2... d6 {[%clk 0:02:53.3]} 3. h3 {[%clk 0:02:59.7]} 3... g6 {[%clk 0:02:51.6]}
4. Be2 {[%clk 0:02:57.7]} 4... Bg7 {[%clk 0:02:48.8]} 5. O-O {[%clk 0:02:57.6]}
5... e5 {[%clk 0:02:40.7]} 6. c3 {[%clk 0:02:54.4]} 6... Nge7 {[%clk 0:02:40.4]}
7. d4 {[%clk 0:02:51.6]} 7... O-O {[%clk 0:02:41]} 8. Be3 {[%clk 0:02:46.8]}
8... f5 {[%clk 0:02:36.8]} 9. dxe5 {[%clk 0:02:42.2]} 9... dxe5 {[%clk
0:02:36.1]} 10. Bc5 {[%clk 0:02:34.9]} 10... b6 {[%clk 0:02:23.2]} 11. Qb3+
{[%clk 0:02:15.7]} 11... Kh8 {[%clk 0:02:22.3]} 12. Ba3 {[%clk 0:02:12.9]} 12...
h6 {[%clk 0:02:15.9]} 13. Nbd2 {[%clk 0:01:58.1]} 13... f4 {[%clk 0:01:53.9]}
14. Nc4 {[%clk 0:01:44.7]} 14... Be6 {[%clk 0:01:51.8]} 15. Rad1 {[%clk
0:01:34.4]} 15... Qe8 {[%clk 0:01:48.8]} 16. Qc2 {[%clk 0:01:31.2]} 16... g5
{[%clk 0:01:44.2]} 17. b4 {[%clk 0:01:24.3]} 17... a6 {[%clk 0:01:43.8]} 18.
Nfd2 {[%clk 0:01:11.5]} 18... b5 {[%clk 0:01:35.7]} 19. Na5 {[%clk 0:01:04.1]}
19... h5 {[%clk 0:01:26.1]} 20. f3 {[%clk 0:00:50]} 20... Rf6 {[%clk 0:01:18.6]}
21. Ndb3 {[%clk 0:00:45.8]} 21... Rg6 {[%clk 0:01:14.8]} 22. Nc5 {[%clk
0:00:41.9]} 22... Bc8 {[%clk 0:01:12.5]} 23. Kf2 {[%clk 0:00:28.3]} 23... Nxa5
{[%clk 0:01:02.3]} 24. bxa5 {[%clk 0:00:28]} 24... Nc6 {[%clk 0:01:02.9]} 25.
Bb4 {[%clk 0:00:22]} 25... Bf8 {[%clk 0:00:57.2]} 26. Rd5 {[%clk 0:00:19.8]}
26... Be6 {[%clk 0:00:41.7]} 27. Rfd1 {[%clk 0:00:19.3]} 27... Bxd5 {[%clk
0:00:41.1]} 28. exd5 {[%clk 0:00:19.4]} 28... Nxb4 {[%clk 0:00:37.8]} 29. cxb4
{[%clk 0:00:19.7]} 29... Bxc5+ {[%clk 0:00:37.5]} 30. bxc5 {[%clk 0:00:19.2]}
30... e4 {[%clk 0:00:37.9]} 31. Qxe4 {[%clk 0:00:18.8]} 31... Qxe4 {[%clk
0:00:37.5]} 32. fxe4 {[%clk 0:00:19.2]} 32... g4 {[%clk 0:00:38.2]} 33. hxg4
{[%clk 0:00:19.3]} 33... hxg4 {[%clk 0:00:39.1]} 34. e5 {[%clk 0:00:19.6]} 34...
Rd8 {[%clk 0:00:33]} 35. d6 {[%clk 0:00:19.4]} 35... cxd6 {[%clk 0:00:33.6]} 36.
exd6 {[%clk 0:00:19.5]} 36... Kg7 {[%clk 0:00:32.8]} 37. c6 {[%clk 0:00:16.8]}
37... Rdxd6 {[%clk 0:00:29.9]} 38. c7 {[%clk 0:00:01.5]} 38... Rc6 {[%clk
0:00:30.1]} 39. Rd7+ {[%clk 0:00:01.9]} 39... Kf6 {[%clk 0:00:30.1]} 40. Bd3
{[%clk 0:00:02.6]} 40... Rg7 {[%clk 0:00:29]} 41. Be4 {[%clk 0:00:02.9]} 41...
Rxd7 {[%clk 0:00:28.2]} 0-1

[Event "Late-Titled-Tuesday-Blitz-August-29-2023"]
[Site "Chess.com"]
[Date "2023.08.29"]
[Round "4"]
[White "IMRosen"]
[Black "DanielNaroditsky"]
[Result "0-1"]
[WhiteElo "2618"]
[BlackElo "3101"]
[TimeControl "180+1"]
[EndTime "14:38:25 PDT"]
[Termination "DanielNaroditsky won on time"]

1. d4 {[%clk 0:02:53.7]} 1... Nf6 {[%clk 0:02:57.3]} 2. Bf4 {[%clk 0:02:51.3]}
2... c5 {[%clk 0:02:57.9]} 3. e3 {[%clk 0:02:50]} 3... cxd4 {[%clk 0:02:58.2]}
4. exd4 {[%clk 0:02:50.3]} 4... Qb6 {[%clk 0:02:59]} 5. Na3 {[%clk 0:02:49.6]}
5... d6 {[%clk 0:02:47.1]} 6. Nc4 {[%clk 0:02:48]} 6... Qc7 {[%clk 0:02:47.2]}
7. Nf3 {[%clk 0:02:40]} 7... b6 {[%clk 0:02:47]} 8. Bd3 {[%clk 0:02:36.5]} 8...
Bb7 {[%clk 0:02:46.4]} 9. Qe2 {[%clk 0:02:35.3]} 9... e6 {[%clk 0:02:43.8]} 10.
c3 {[%clk 0:02:29.2]} 10... Be7 {[%clk 0:02:43.7]} 11. O-O {[%clk 0:02:29.7]}
11... O-O {[%clk 0:02:42]} 12. Rfe1 {[%clk 0:02:22.1]} 12... Nbd7 {[%clk
0:02:39.6]} 13. h3 {[%clk 0:02:19.2]} 13... h6 {[%clk 0:02:28.9]} 14. a4 {[%clk
0:02:15.6]} 14... Rac8 {[%clk 0:02:25.4]} 15. Qd1 {[%clk 0:02:09]} 15... a6
{[%clk 0:02:20.8]} 16. Ncd2 {[%clk 0:02:02.1]} 16... Rfe8 {[%clk 0:02:17.9]} 17.
Qb3 {[%clk 0:01:58.7]} 17... Qb8 {[%clk 0:02:13.6]} 18. Bg3 {[%clk 0:01:43.7]}
18... Qa8 {[%clk 0:02:10.6]} 19. Rad1 {[%clk 0:01:26.2]} 19... Bf8 {[%clk
0:02:10.5]} 20. Qa2 {[%clk 0:01:21.8]} 20... Bc6 {[%clk 0:02:04.3]} 21. c4
{[%clk 0:01:01.3]} 21... d5 {[%clk 0:01:56.8]} 22. b3 {[%clk 0:00:56.5]} 22...
Bb4 {[%clk 0:01:57]} 23. Bf1 {[%clk 0:00:32.4]} 23... dxc4 {[%clk 0:01:40.8]}
24. bxc4 {[%clk 0:00:32.9]} 24... Bxd2 {[%clk 0:01:21.9]} 25. Rxd2 {[%clk
0:00:30.7]} 25... Bxf3 {[%clk 0:01:19.1]} 26. gxf3 {[%clk 0:00:30.9]} 26... Qxf3
{[%clk 0:01:19.7]} 27. Bg2 {[%clk 0:00:31]} 27... Qc3 {[%clk 0:01:16.3]} 28. Bf1
{[%clk 0:00:20.5]} 28... Qa5 {[%clk 0:01:09.7]} 29. Rc1 {[%clk 0:00:16.5]} 29...
Ne4 {[%clk 0:01:08.3]} 30. Rd3 {[%clk 0:00:13.9]} 30... Qg5 {[%clk 0:00:58.2]}
31. Rcd1 {[%clk 0:00:10.2]} 31... Ndf6 {[%clk 0:00:55.4]} 32. Bg2 {[%clk
0:00:10]} 32... Red8 {[%clk 0:00:50.1]} 33. Qb3 {[%clk 0:00:06.6]} 33... Qa5
{[%clk 0:00:43.9]} 34. Re3 {[%clk 0:00:06.1]} 34... Nd2 {[%clk 0:00:43]} 35. Qc3
{[%clk 0:00:02.9]} 35... Nxc4 {[%clk 0:00:37]} 36. Qxa5 {[%clk 0:00:02.4]} 36...
Nxa5 {[%clk 0:00:37]} 37. Red3 {[%clk 0:00:02.1]} 37... Nd5 {[%clk 0:00:36.3]}
38. Rb1 {[%clk 0:00:01.4]} 38... Nc4 {[%clk 0:00:36.9]} 39. Rdd1 {[%clk
0:00:01.2]} 39... Nc3 {[%clk 0:00:37.2]} 40. Rbc1 {[%clk 0:00:01.3]} 40... Ne2+
{[%clk 0:00:34.1]} 41. Kh2 {[%clk 0:00:01.4]} 41... Nxc1 {[%clk 0:00:35]} 42.
Rxc1 {[%clk 0:00:01.9]} 42... Rxd4 {[%clk 0:00:35.8]} 43. Bb7 {[%clk 0:00:02]}
43... Rcd8 {[%clk 0:00:32.6]} 44. Bxa6 {[%clk 0:00:02]} 44... Nd6 {[%clk
0:00:31.8]} 45. Rc7 {[%clk 0:00:01.8]} 45... Rxa4 {[%clk 0:00:30.2]} 46. Be2
{[%clk 0:00:01.2]} 46... Nf5 {[%clk 0:00:27]} 47. Be5 {[%clk 0:00:01.1]} 47...
Re4 {[%clk 0:00:27.2]} 0-1

[Event "Late-Titled-Tuesday-Blitz-August-29-2023"]
[Site "Chess.com"]
[Date "2023.08.29"]
[Round "4"]
[White "Fuzesabonyilaci"]
[Black "trriinu"]
[Result "1-0"]
[WhiteElo "2403"]
[BlackElo "2205"]
[TimeControl "180+1"]
[EndTime "14:38:25 PDT"]
[Termination "Fuzesabonyilaci won on time"]

1. d4 {[%clk 0:03:00.9]} 1... d5 {[%clk 0:02:59.1]} 2. Nc3 {[%clk 0:02:57.5]}
2... c6 {[%clk 0:02:55.9]} 3. e4 {[%clk 0:02:54.6]} 3... g6 {[%clk 0:02:55.7]}
4. e5 {[%clk 0:02:43.9]} 4... Bg7 {[%clk 0:02:55]} 5. g4 {[%clk 0:02:43.7]} 5...
f6 {[%clk 0:02:52.2]} 6. f4 {[%clk 0:02:43]} 6... fxe5 {[%clk 0:02:49.7]} 7.
fxe5 {[%clk 0:02:42.8]} 7... e6 {[%clk 0:02:48.3]} 8. Be3 {[%clk 0:02:37.3]}
8... Nh6 {[%clk 0:02:38.4]} 9. h4 {[%clk 0:02:33.2]} 9... O-O {[%clk 0:02:37.3]}
10. Be2 {[%clk 0:02:33]} 10... c5 {[%clk 0:02:35.1]} 11. h5 {[%clk 0:02:12.5]}
11... cxd4 {[%clk 0:02:30]} 12. Bxh6 {[%clk 0:02:08.7]} 12... dxc3 {[%clk
0:02:27.4]} 13. Bxg7 {[%clk 0:02:03.7]} 13... Kxg7 {[%clk 0:01:01.6]} 14. hxg6
{[%clk 0:01:43.2]} 14... cxb2 {[%clk 0:01:00.6]} 15. Rxh7+ {[%clk 0:01:41.8]}
15... Kg8 {[%clk 0:00:58.7]} 16. Rb1 {[%clk 0:01:34.5]} 16... Qg5 {[%clk
0:00:36.6]} 17. Rxb2 {[%clk 0:01:11.7]} 17... Nc6 {[%clk 0:00:19.7]} 18. Nf3
{[%clk 0:00:58.3]} 18... Rxf3 {[%clk 0:00:12]} 19. Bxf3 {[%clk 0:00:53.3]} 19...
Qxe5+ {[%clk 0:00:12]} 20. Kf1 {[%clk 0:00:27]} 20... Qxb2 {[%clk 0:00:11.6]}
21. Bxd5 {[%clk 0:00:27.2]} 21... Qb5+ {[%clk 0:00:06.6]} 22. c4 {[%clk
0:00:26.5]} 22... Qc5 {[%clk 0:00:03.5]} 23. Qa1 {[%clk 0:00:20.6]} 23... Qd4
{[%clk 0:00:02.7]} 24. Qe1 {[%clk 0:00:11.2]} 24... Qf4+ {[%clk 0:00:02.5]} 25.
Kg1 {[%clk 0:00:10.5]} 25... Qxg4+ {[%clk 0:00:01.9]} 26. Bg2 {[%clk 0:00:10.6]}
26... Qxg6 {[%clk 0:00:02.4]} 27. Rh3 {[%clk 0:00:10]} 27... e5 {[%clk
0:00:02.1]} 28. Rg3 {[%clk 0:00:08.6]} 28... Bf5 {[%clk 0:00:02.8]} 29. Rxg6+
{[%clk 0:00:08]} 29... Bxg6 {[%clk 0:00:03.7]} 30. Qg3 {[%clk 0:00:06.6]} 30...
Kg7 {[%clk 0:00:02.8]} 31. Be4 {[%clk 0:00:06.7]} 31... Ne7 {[%clk 0:00:01.7]}
32. Qxe5+ {[%clk 0:00:07]} 32... Kf7 {[%clk 0:00:02.3]} 33. Bxb7 {[%clk
0:00:04.7]} 33... Rg8 {[%clk 0:00:01.6]} 34. Bd5+ {[%clk 0:00:05]} 34... Nxd5
{[%clk 0:00:01.5]} 35. Qxd5+ {[%clk 0:00:05.9]} 35... Kf6 {[%clk 0:00:01.3]} 36.
Qd4+ {[%clk 0:00:05.4]} 1-0

[Event "Late-Titled-Tuesday-Blitz-August-29-2023"]
[Site "Chess.com"]
[Date "2023.08.29"]
[Round "4"]
[White "only_strong_moves"]
[Black "S-Fazulyanov"]
[Result "1-0"]
[WhiteElo "2538"]
[BlackElo "2641"]
[TimeControl "180+1"]
[EndTime "14:38:26 PDT"]
[Termination "only_strong_moves won on time"]

1. e4 {[%clk 0:03:00.9]} 1... c5 {[%clk 0:03:00.1]} 2. Nf3 {[%clk 0:03:00.8]}
2... Nc6 {[%clk 0:03:00.1]} 3. Bb5 {[%clk 0:03:00]} 3... g6 {[%clk 0:02:59.8]}
4. O-O {[%clk 0:02:59.4]} 4... Bg7 {[%clk 0:03:00]} 5. Bxc6 {[%clk 0:02:59.9]}
5... dxc6 {[%clk 0:03:00.6]} 6. d3 {[%clk 0:03:00.4]} 6... e5 {[%clk 0:03:00.7]}
7. h3 {[%clk 0:03:00.9]} 7... Ne7 {[%clk 0:03:00.7]} 8. Be3 {[%clk 0:02:56.5]}
8... b6 {[%clk 0:03:00.1]} 9. Qd2 {[%clk 0:02:55.3]} 9... h6 {[%clk 0:02:59.9]}
10. Nh2 {[%clk 0:02:51.8]} 10... g5 {[%clk 0:02:56]} 11. Nc3 {[%clk 0:02:48.2]}
11... Qd6 {[%clk 0:02:54.5]} 12. a4 {[%clk 0:02:44.4]} 12... a5 {[%clk 0:02:50]}
13. Nb1 {[%clk 0:02:36.4]} 13... Be6 {[%clk 0:02:39.9]} 14. Na3 {[%clk
0:02:36.4]} 14... Ng6 {[%clk 0:02:38.6]} 15. Nc4 {[%clk 0:02:11.8]} 15... Bxc4
{[%clk 0:02:36.1]} 16. dxc4 {[%clk 0:02:12.7]} 16... Qxd2 {[%clk 0:02:35.5]} 17.
Bxd2 {[%clk 0:02:13.6]} 17... O-O-O {[%clk 0:02:34.5]} 18. Rfd1 {[%clk
0:02:04.6]} 18... Rd4 {[%clk 0:02:27.8]} 19. Bc3 {[%clk 0:01:48.9]} 19... Rxc4
{[%clk 0:02:13.4]} 20. Rd6 {[%clk 0:01:48.3]} 20... Rd8 {[%clk 0:02:03]} 21.
Rxd8+ {[%clk 0:01:31]} 21... Kxd8 {[%clk 0:02:02]} 22. f3 {[%clk 0:01:31.9]}
22... Nf4 {[%clk 0:01:55.1]} 23. Kf2 {[%clk 0:01:29.7]} 23... b5 {[%clk
0:01:14.5]} 24. axb5 {[%clk 0:01:26.7]} 24... cxb5 {[%clk 0:01:14.5]} 25. Bxa5+
{[%clk 0:01:24.2]} 25... Kd7 {[%clk 0:01:03.4]} 26. c3 {[%clk 0:01:21]} 26... b4
{[%clk 0:01:01.7]} 27. Ng4 {[%clk 0:01:16]} 27... Nd3+ {[%clk 0:00:58]} 28. Ke2
{[%clk 0:01:15]} 28... Nxb2 {[%clk 0:00:58.9]} 29. cxb4 {[%clk 0:00:27.4]} 29...
Rc2+ {[%clk 0:00:58]} 30. Kf1 {[%clk 0:00:22.2]} 30... c4 {[%clk 0:00:50.7]} 31.
Ne3 {[%clk 0:00:22.3]} 31... Rc3 {[%clk 0:00:47]} 32. Nd5 {[%clk 0:00:17.4]}
32... Rd3 {[%clk 0:00:35]} 33. b5 {[%clk 0:00:17.4]} 33... Bf8 {[%clk
0:00:30.4]} 34. b6 {[%clk 0:00:15.3]} 34... Kc6 {[%clk 0:00:27.8]} 35. Rb1
{[%clk 0:00:13.6]} 35... Ba3 {[%clk 0:00:23.8]} 36. Bb4 {[%clk 0:00:08.1]} 1-0

[Event "Late-Titled-Tuesday-Blitz-August-29-2023"]
[Site "Chess.com"]
[Date "2023.08.29"]
[Round "4"]
[White "WindWhistler11"]
[Black "CarrotsandPizza"]
[Result "1-0"]
[WhiteElo "2480"]
[BlackElo "2316"]
[TimeControl "180+1"]
[EndTime "14:38:26 PDT"]
[Termination "WindWhistler11 won on time"]

1. Nf3 {[%clk 0:03:00.9]} 1... Nf6 {[%clk 0:02:58.6]} 2. c4 {[%clk 0:03:00.4]}
2... g6 {[%clk 0:02:59.5]} 3. g3 {[%clk 0:03:00.6]} 3... Bg7 {[%clk 0:03:00.4]}
4. Bg2 {[%clk 0:03:01.2]} 4... d6 {[%clk 0:03:01.3]} 5. O-O {[%clk 0:03:01.7]}
5... O-O {[%clk 0:03:01.6]} 6. Nc3 {[%clk 0:03:02.4]} 6... e5 {[%clk 0:03:01.9]}
7. Rb1 {[%clk 0:03:02.8]} 7... a5 {[%clk 0:03:01.6]} 8. a3 {[%clk 0:03:02.9]}
8... Nc6 {[%clk 0:03:02.2]} 9. b4 {[%clk 0:03:03.6]} 9... axb4 {[%clk
0:03:02.9]} 10. axb4 {[%clk 0:03:04.5]} 10... Nd4 {[%clk 0:03:03.4]} 11. Ne1
{[%clk 0:03:04]} 11... c6 {[%clk 0:03:02.9]} 12. e3 {[%clk 0:03:04.1]} 12... Nf5
{[%clk 0:03:02.8]} 13. d3 {[%clk 0:03:03.5]} 13... d5 {[%clk 0:03:03.1]} 14.
cxd5 {[%clk 0:02:52.4]} 14... cxd5 {[%clk 0:03:04]} 15. Nc2 {[%clk 0:02:40.2]}
15... h5 {[%clk 0:02:59.7]} 16. e4 {[%clk 0:02:35.1]} 16... dxe4 {[%clk
0:02:58.4]} 17. dxe4 {[%clk 0:02:36]} 17... Nd4 {[%clk 0:02:57]} 18. Ne3 {[%clk
0:02:36.6]} 18... h4 {[%clk 0:02:54.9]} 19. Ncd5 {[%clk 0:02:19.2]} 19... h3
{[%clk 0:02:48.4]} 20. Bh1 {[%clk 0:02:19.1]} 20... Ne8 {[%clk 0:02:38.5]} 21.
Nc4 {[%clk 0:02:13.5]} 21... Be6 {[%clk 0:02:34.1]} 22. Be3 {[%clk 0:02:06.2]}
22... b5 {[%clk 0:02:34.1]} 23. Na5 {[%clk 0:02:04.4]} 23... Rc8 {[%clk
0:02:31.3]} 24. Nb7 {[%clk 0:02:00.3]} 24... Qd7 {[%clk 0:02:17.3]} 25. Nc5
{[%clk 0:02:00.2]} 25... Qd8 {[%clk 0:02:11.3]} 26. f4 {[%clk 0:01:44.7]} 26...
Bxd5 {[%clk 0:00:55.3]} 27. exd5 {[%clk 0:01:41.8]} 27... Qd6 {[%clk 0:00:49.8]}
28. Ne4 {[%clk 0:01:28.4]} 28... Qb8 {[%clk 0:00:39.4]} 29. Ng5 {[%clk
0:01:25.8]} 29... Nf5 {[%clk 0:00:36.5]} 30. Bc5 {[%clk 0:00:55.6]} 30... exf4
{[%clk 0:00:29.8]} 31. Rxf4 {[%clk 0:00:52.6]} 31... Ned6 {[%clk 0:00:20.5]} 32.
Qg4 {[%clk 0:00:42.5]} 32... Rxc5 {[%clk 0:00:06.3]} 33. bxc5 {[%clk 0:00:41.6]}
33... Qa7 {[%clk 0:00:07.1]} 34. Rc1 {[%clk 0:00:37.9]} 34... Rc8 {[%clk
0:00:07.6]} 35. Ne4 {[%clk 0:00:06.8]} 35... Nxe4 {[%clk 0:00:06.3]} 36. Bxe4
{[%clk 0:00:05.7]} 36... Rxc5 {[%clk 0:00:06.1]} 37. Rcf1 {[%clk 0:00:06.3]} 1-0

[Event "Late-Titled-Tuesday-Blitz-August-29-2023"]
[Site "Chess.com"]
[Date "2023.08.29"]
[Round "4"]
[White "Noki102"]
[Black "The_Princess_Moon"]
[Result "0-1"]
[WhiteElo "2429"]
[BlackElo "2236"]
[TimeControl "180+1"]
[EndTime "14:38:26 PDT"]
[Termination "The_Princess_Moon won on time"]

1. d4 {[%clk 0:02:32.1]} 1... c5 {[%clk 0:03:00.9]} 2. dxc5 {[%clk 0:02:29.5]}
2... e6 {[%clk 0:02:59.4]} 3. Nc3 {[%clk 0:02:28.9]} 3... Bxc5 {[%clk
0:02:58.5]} 4. e4 {[%clk 0:02:25.3]} 4... d6 {[%clk 0:02:54.4]} 5. Nf3 {[%clk
0:02:10.7]} 5... Nf6 {[%clk 0:02:53.5]} 6. Bg5 {[%clk 0:01:59.9]} 6... Nbd7
{[%clk 0:02:46.4]} 7. Bd3 {[%clk 0:01:56.8]} 7... h6 {[%clk 0:02:39.6]} 8. Bh4
{[%clk 0:01:55.4]} 8... O-O {[%clk 0:02:23.8]} 9. Qd2 {[%clk 0:01:46.8]} 9... a6
{[%clk 0:02:22.1]} 10. O-O-O {[%clk 0:01:44.9]} 10... b5 {[%clk 0:02:17]} 11. g4
{[%clk 0:01:44.5]} 11... b4 {[%clk 0:02:13.2]} 12. Na4 {[%clk 0:01:44.3]} 12...
Qa5 {[%clk 0:02:11.8]} 13. b3 {[%clk 0:01:30.8]} 13... Nxg4 {[%clk 0:01:25.6]}
14. Rhg1 {[%clk 0:01:27.4]} 14... Nde5 {[%clk 0:01:14.1]} 15. Nxe5 {[%clk
0:01:18.3]} 15... Nxe5 {[%clk 0:01:12.4]} 16. Qxh6 {[%clk 0:01:04.9]} 16... Ng6
{[%clk 0:01:08.6]} 17. Rxg6 {[%clk 0:00:52.3]} 17... fxg6 {[%clk 0:01:09.5]} 18.
Qxg6 {[%clk 0:00:52.6]} 18... Rf4 {[%clk 0:00:18]} 19. Rg1 {[%clk 0:00:47.2]}
19... Bd4 {[%clk 0:00:16.1]} 20. e5 {[%clk 0:00:41.3]} 20... Qxe5 {[%clk
0:00:15.2]} 21. Qe8+ {[%clk 0:00:35.7]} 21... Rf8 {[%clk 0:00:14]} 22. Bh7+
{[%clk 0:00:32.5]} 22... Kxh7 {[%clk 0:00:14.1]} 23. Qxf8 {[%clk 0:00:33]} 23...
Bb7 {[%clk 0:00:12.2]} 24. Qe7 {[%clk 0:00:30.7]} 24... Qf4+ {[%clk 0:00:10.2]}
25. Kb1 {[%clk 0:00:28.3]} 25... Be4 {[%clk 0:00:10.1]} 26. Bg5 {[%clk
0:00:15.4]} 26... Bxc2+ {[%clk 0:00:10.3]} 27. Kxc2 {[%clk 0:00:12.2]} 27...
Rc8+ {[%clk 0:00:09.3]} 28. Kd1 {[%clk 0:00:06.4]} 28... Rc1+ {[%clk 0:00:09]}
29. Ke2 {[%clk 0:00:06.8]} 29... Qxf2+ {[%clk 0:00:08.3]} 30. Kd3 {[%clk
0:00:06.5]} 30... Rxg1 {[%clk 0:00:06.8]} 31. Qxe6 {[%clk 0:00:03.4]} 31... Rd1+
{[%clk 0:00:05.3]} 32. Kc4 {[%clk 0:00:03.5]} 32... Qf1+ {[%clk 0:00:05.4]} 33.
Kxb4 {[%clk 0:00:03.4]} 33... Qe1+ {[%clk 0:00:05]} 34. Ka3 {[%clk 0:00:03.4]}
34... Qxe6 {[%clk 0:00:04.8]} 0-1